[Event "*** Titled Tuesday Blitz AM"]
[Site "Chess.com"]
[Date "2020.01.07"]
[Round "4"]
[White "IMRosen"]
[Black "MathiasWomacka"]
[Result "1-0"]
[WhiteElo "2568"]
[BlackElo "2348"]
[TimeControl "180+2"]
[EndTime "9:54:28 PST"]
[Termination "IMRosen won by resignation"]

1. d4 {[%clk 0:03:01.9]} 1... Nf6 {[%clk 0:00:57.6]} 2. Bf4 {[%clk 0:02:59.5]}
2... c5 {[%clk 0:00:55.9]} 3. e3 {[%clk 0:03:00.6]} 3... e6 {[%clk 0:00:56]} 4.
Nf3 {[%clk 0:03:00.7]} 4... d5 {[%clk 0:00:56.9]} 5. Nbd2 {[%clk 0:03:00.6]}
5... Bd6 {[%clk 0:00:57.6]} 6. Bg3 {[%clk 0:02:54.3]} 6... O-O {[%clk
0:00:57.1]} 7. c3 {[%clk 0:02:55.4]} 7... Qc7 {[%clk 0:00:57.9]} 8. dxc5 {[%clk
0:02:51.7]} 8... Qxc5 {[%clk 0:00:55.3]} 9. Bd3 {[%clk 0:02:52.5]} 9... Qc7
{[%clk 0:00:53.3]} 10. Qa4 {[%clk 0:02:45.6]} 10... e5 {[%clk 0:00:50.5]} 11. e4
{[%clk 0:02:45.2]} 11... Nc6 {[%clk 0:00:48.4]} 12. exd5 {[%clk 0:02:30]} 12...
Nxd5 {[%clk 0:00:50.3]} 13. Qh4 {[%clk 0:02:31.1]} 13... h6 {[%clk 0:00:44]} 14.
O-O {[%clk 0:01:33.3]} 14... f5 {[%clk 0:00:39]} 15. Nc4 {[%clk 0:00:43.7]}
15... f4 {[%clk 0:00:28.6]} 16. Nxd6 {[%clk 0:00:42.7]} 16... Qxd6 {[%clk
0:00:30.5]} 17. Rad1 {[%clk 0:00:44]} 17... fxg3 {[%clk 0:00:26.7]} 18. Be4
{[%clk 0:00:44.8]} 18... gxf2+ {[%clk 0:00:19.8]} 19. Rxf2 {[%clk 0:00:43.4]}
19... Be6 {[%clk 0:00:18.8]} 20. c4 {[%clk 0:00:44.3]} 20... Nd4 {[%clk
0:00:16.5]} 21. cxd5 {[%clk 0:00:38]} 21... Bxd5 {[%clk 0:00:15.8]} 22. Nxd4
{[%clk 0:00:31.5]} 22... Bxe4 {[%clk 0:00:14]} 23. Qxe4 {[%clk 0:00:29.2]} 23...
Rxf2 {[%clk 0:00:13.4]} 24. Kxf2 {[%clk 0:00:30.7]} 24... Rd8 {[%clk 0:00:13.6]}
25. Qxb7 {[%clk 0:00:23]} 25... exd4 {[%clk 0:00:14.7]} 26. Qb3+ {[%clk
0:00:18.2]} 26... Kh8 {[%clk 0:00:14.7]} 27. Qg3 {[%clk 0:00:15.1]} 27... Qb6
{[%clk 0:00:11.3]} 28. Qb3 {[%clk 0:00:11.2]} 28... Qxb3 {[%clk 0:00:07.5]} 29.
axb3 {[%clk 0:00:13.1]} 29... Rb8 {[%clk 0:00:08.9]} 30. Rd3 {[%clk 0:00:13.5]}
30... Kg8 {[%clk 0:00:08.5]} 31. Kf3 {[%clk 0:00:14.6]} 31... Kf7 {[%clk
0:00:09.5]} 32. Ke4 {[%clk 0:00:16]} 32... Rb4 {[%clk 0:00:10.6]} 33. Ke5 {[%clk
0:00:06.4]} 33... a5 {[%clk 0:00:08.5]} 34. g3 {[%clk 0:00:06.2]} 34... h5
{[%clk 0:00:08.3]} 35. h4 {[%clk 0:00:05.4]} 35... Kg6 {[%clk 0:00:08.5]} 36.
Ke6 {[%clk 0:00:03.9]} 36... Rb6+ {[%clk 0:00:06.9]} 37. Kd5 {[%clk 0:00:05.2]}
37... Rb4 {[%clk 0:00:07]} 38. Ke5 {[%clk 0:00:05.4]} 38... Kf7 {[%clk
0:00:06.8]} 39. Kf5 {[%clk 0:00:06.5]} 39... Rb5+ {[%clk 0:00:06.9]} 40. Ke4
{[%clk 0:00:07.1]} 40... Rb4 {[%clk 0:00:08.1]} 41. Kd5 {[%clk 0:00:08.8]} 41...
Kf6 {[%clk 0:00:08.8]} 42. Rf3+ {[%clk 0:00:10.3]} 42... Kg6 {[%clk 0:00:09.2]}
43. Ke6 {[%clk 0:00:11.1]} 43... a4 {[%clk 0:00:08.6]} 44. bxa4 {[%clk
0:00:10.1]} 44... Rxa4 {[%clk 0:00:10.5]} 45. Rd3 {[%clk 0:00:08.6]} 45... Rb4
{[%clk 0:00:11.3]} 46. b3 {[%clk 0:00:09.9]} 46... Kh6 {[%clk 0:00:09]} 47. Kd5
{[%clk 0:00:10.9]} 47... Kg6 {[%clk 0:00:10.1]} 48. Kc5 {[%clk 0:00:12.1]} 48...
Rb8 {[%clk 0:00:09.1]} 49. Kxd4 {[%clk 0:00:12.7]} 49... Kf5 {[%clk 0:00:10.4]}
50. Kc4 {[%clk 0:00:08.7]} 50... Ke4 {[%clk 0:00:11.5]} 51. Rd7 {[%clk
0:00:07.8]} 51... Rc8+ {[%clk 0:00:09.5]} 52. Kb5 {[%clk 0:00:08.2]} 52... g5
{[%clk 0:00:10.7]} 53. hxg5 {[%clk 0:00:08.3]} 53... Kf3 {[%clk 0:00:11.9]} 54.
Rd3+ {[%clk 0:00:08.3]} 54... Kg4 {[%clk 0:00:12.9]} 55. b4 {[%clk 0:00:09.1]}
55... Kxg5 {[%clk 0:00:13.6]} 56. Ka6 {[%clk 0:00:10.3]} 56... Ra8+ {[%clk
0:00:07.3]} 57. Kb7 {[%clk 0:00:10.2]} 57... Ra1 {[%clk 0:00:06.1]} 58. b5
{[%clk 0:00:11.4]} 58... Kg4 {[%clk 0:00:07.5]} 59. b6 {[%clk 0:00:12.5]} 59...
Rg1 {[%clk 0:00:08.5]} 60. Ka7 {[%clk 0:00:12.5]} 60... Rxg3 {[%clk 0:00:09.7]}
61. Rxg3+ {[%clk 0:00:12.4]} 61... Kxg3 {[%clk 0:00:11.6]} 62. b7 {[%clk
0:00:14.3]} 62... h4 {[%clk 0:00:13.2]} 63. b8=Q+ {[%clk 0:00:16.2]} 63... Kg2
{[%clk 0:00:14.9]} 64. Qb7+ {[%clk 0:00:16.5]} 64... Kg3 {[%clk 0:00:15.5]} 65.
Qh1 {[%clk 0:00:16.2]} 1-0

[Event "*** Titled Tuesday Blitz AM"]
[Site "Chess.com"]
[Date "2020.01.07"]
[Round "4"]
[White "wild_cat99"]
[Black "bhavesh1810"]
[Result "1/2-1/2"]
[WhiteElo "2411"]
[BlackElo "2019"]
[TimeControl "180+2"]
[EndTime "9:54:35 PST"]
[Termination "Game drawn by agreement"]

1. e4 {[%clk 0:03:01.9]} 1... c5 {[%clk 0:03:00.6]} 2. Nf3 {[%clk 0:03:02.4]}
2... d6 {[%clk 0:03:01.8]} 3. d4 {[%clk 0:03:04.3]} 3... cxd4 {[%clk 0:03:03.7]}
4. Nxd4 {[%clk 0:03:05.5]} 4... Nf6 {[%clk 0:03:05.6]} 5. f3 {[%clk 0:03:05.2]}
5... e5 {[%clk 0:03:05.3]} 6. Bb5+ {[%clk 0:03:03.9]} 6... Bd7 {[%clk 0:03:04]}
7. Bxd7+ {[%clk 0:02:59.4]} 7... Qxd7 {[%clk 0:03:05.9]} 8. Nf5 {[%clk
0:02:50.8]} 8... d5 {[%clk 0:03:04.8]} 9. Bg5 {[%clk 0:02:47.3]} 9... dxe4
{[%clk 0:02:55.6]} 10. Bxf6 {[%clk 0:02:46.8]} 10... Qxd1+ {[%clk 0:02:52.6]}
11. Kxd1 {[%clk 0:02:48.7]} 11... gxf6 {[%clk 0:02:54.5]} 12. fxe4 {[%clk
0:02:49.2]} 12... Nc6 {[%clk 0:02:56.1]} 13. Ke2 {[%clk 0:02:47.4]} 13... O-O-O
{[%clk 0:02:57.2]} 14. c3 {[%clk 0:02:42.4]} 14... Rg8 {[%clk 0:02:58.2]} 15. g3
{[%clk 0:02:42.8]} 15... h5 {[%clk 0:02:50.4]} 16. Nd2 {[%clk 0:02:38.3]} 16...
Rg4 {[%clk 0:02:51.2]} 17. h3 {[%clk 0:02:38.8]} 17... Rg6 {[%clk 0:02:50.7]}
18. Nc4 {[%clk 0:02:39.2]} 18... Kc7 {[%clk 0:02:47.1]} 19. Nce3 {[%clk
0:02:39.4]} 19... Bc5 {[%clk 0:02:47.3]} 20. Nd5+ {[%clk 0:02:40.3]} 20... Kb8
{[%clk 0:02:47.3]} 21. b4 {[%clk 0:02:36.3]} 21... Bf8 {[%clk 0:02:47.6]} 22.
Rhf1 {[%clk 0:02:34.7]} 22... a6 {[%clk 0:02:43.1]} 23. Rf3 {[%clk 0:02:34.7]}
23... a5 {[%clk 0:02:42.1]} 24. a3 {[%clk 0:02:35.2]} 24... Rd7 {[%clk
0:02:24.9]} 25. Nh4 {[%clk 0:02:28.2]} 25... Rg5 {[%clk 0:02:14.9]} 26. Nxf6
{[%clk 0:02:22.9]} 26... Re7 {[%clk 0:02:15.3]} 27. Nd5 {[%clk 0:02:23.5]} 27...
Rd7 {[%clk 0:02:16.6]} 28. Raf1 {[%clk 0:02:21.7]} 28... Nd8 {[%clk 0:02:14.8]}
29. Nf5 {[%clk 0:02:10.4]} 29... axb4 {[%clk 0:02:14.8]} 30. axb4 {[%clk
0:02:11.2]} 30... Ne6 {[%clk 0:02:14.1]} 31. Nfe3 {[%clk 0:01:43.5]} 31... Nd8
{[%clk 0:02:13.8]} 32. Nc4 {[%clk 0:01:36.7]} 32... Bg7 {[%clk 0:02:09]} 33.
Ncb6 {[%clk 0:01:35.6]} 33... Rd6 {[%clk 0:02:08.9]} 34. c4 {[%clk 0:01:28.1]}
34... Nc6 {[%clk 0:01:33.2]} 35. Rxf7 {[%clk 0:01:25.7]} 35... Nd4+ {[%clk
0:01:34.3]} 36. Kf2 {[%clk 0:01:23.4]} 36... Rgg6 {[%clk 0:01:22.6]} 37. Kg2
{[%clk 0:01:23.3]} 37... Rxb6 {[%clk 0:01:17.1]} 38. Nxb6 {[%clk 0:01:23.9]}
38... Rxb6 {[%clk 0:01:19]} 39. Rxg7 {[%clk 0:01:25.2]} 39... Rxb4 {[%clk
0:01:20.4]} 40. Rg5 {[%clk 0:01:22.6]} 40... Nc6 {[%clk 0:01:20.2]} 41. Rxh5
{[%clk 0:01:23]} 41... Rxc4 {[%clk 0:01:21.4]} 42. Rh8+ {[%clk 0:01:19.2]} 42...
Kc7 {[%clk 0:01:21.9]} 43. Ra1 {[%clk 0:01:21.1]} 43... Rxe4 {[%clk 0:01:22.2]}
44. h4 {[%clk 0:01:20.7]} 44... b5 {[%clk 0:01:22.7]} 45. h5 {[%clk 0:01:11.4]}
45... b4 {[%clk 0:01:24]} 46. h6 {[%clk 0:01:12.2]} 46... Re2+ {[%clk
0:01:17.9]} 47. Kf3 {[%clk 0:01:12.2]} 47... Rh2 {[%clk 0:01:18.8]} 48. h7
{[%clk 0:01:10.8]} 48... Kb6 {[%clk 0:01:17.9]} 49. Ke4 {[%clk 0:00:41.7]} 49...
b3 {[%clk 0:01:17.1]} 50. Rb1 {[%clk 0:00:40.1]} 50... b2 {[%clk 0:01:16]} 51.
Rxb2+ {[%clk 0:00:36.2]} 51... Rxb2 {[%clk 0:01:16.2]} 52. Rb8+ {[%clk
0:00:37.6]} 52... Nxb8 {[%clk 0:01:17.4]} 53. h8=Q {[%clk 0:00:38.1]} 53... Nc6
{[%clk 0:01:19]} 54. g4 {[%clk 0:00:33.7]} 54... Rb4+ {[%clk 0:01:19.2]} 55. Kf5
{[%clk 0:00:33.9]} 55... Rf4+ {[%clk 0:01:20.4]} 56. Kg5 {[%clk 0:00:33]} 56...
Kc5 {[%clk 0:01:20.8]} 57. Qc8 {[%clk 0:00:31.6]} 57... Kd5 {[%clk 0:01:20.6]}
58. Qd7+ {[%clk 0:00:31.8]} 58... Kc5 {[%clk 0:01:21.9]} 59. Kh6 {[%clk
0:00:25.5]} 59... Rf6+ {[%clk 0:01:20.5]} 60. Kg7 {[%clk 0:00:24.9]} 60... Rd6
{[%clk 0:01:22.1]} 61. Qb7 {[%clk 0:00:21.5]} 61... e4 {[%clk 0:01:17.2]} 62. g5
{[%clk 0:00:22]} 62... Kd4 {[%clk 0:01:11.9]} 63. g6 {[%clk 0:00:18.7]} 63...
Ne5 {[%clk 0:01:13.1]} 64. Qb4+ {[%clk 0:00:18.7]} 64... Kd5 {[%clk 0:01:14.2]}
65. Qb3+ {[%clk 0:00:12.9]} 65... Kd4 {[%clk 0:01:12.7]} 66. Qd1+ {[%clk
0:00:12.6]} 66... Kc5 {[%clk 0:01:13.8]} 67. Qc2+ {[%clk 0:00:13.3]} 67... Kd4
{[%clk 0:01:13.5]} 68. Qa4+ {[%clk 0:00:12.5]} 68... Kd5 {[%clk 0:01:13.7]} 69.
Qa2+ {[%clk 0:00:11.6]} 69... Kd4 {[%clk 0:01:14.7]} 70. Qf2+ {[%clk 0:00:12.2]}
70... Kd5 {[%clk 0:01:15.6]} 71. Qd2+ {[%clk 0:00:13]} 71... Kc6 {[%clk
0:01:11.4]} 72. Qc3+ {[%clk 0:00:13.3]} 72... Kd5 {[%clk 0:01:12.5]} 73. Qa5+
{[%clk 0:00:11.3]} 73... Kd4 {[%clk 0:01:10.8]} 74. Qa4+ {[%clk 0:00:11.5]}
74... Kd5 {[%clk 0:01:11.4]} 75. Qa8+ {[%clk 0:00:12.6]} 75... Kd4 {[%clk
0:01:11.9]} 1/2-1/2

[Event "*** Titled Tuesday Blitz AM"]
[Site "Chess.com"]
[Date "2020.01.07"]
[Round "4"]
[White "Anton_Demchenko"]
[Black "nouma78"]
[Result "1/2-1/2"]
[WhiteElo "2970"]
[BlackElo "2530"]
[TimeControl "180+2"]
[EndTime "9:55:27 PST"]
[Termination "Game drawn - insufficient material"]

1. d4 {[%clk 0:03:01.9]} 1... Nf6 {[%clk 0:02:58.8]} 2. Nf3 {[%clk 0:03:03.3]}
2... g6 {[%clk 0:02:58.3]} 3. Bf4 {[%clk 0:03:04.3]} 3... Bg7 {[%clk 0:02:57.4]}
4. Nbd2 {[%clk 0:03:05.6]} 4... c5 {[%clk 0:02:57.6]} 5. dxc5 {[%clk 0:03:03.7]}
5... Qa5 {[%clk 0:02:56.7]} 6. c3 {[%clk 0:02:59.7]} 6... Qxc5 {[%clk
0:02:57.7]} 7. e3 {[%clk 0:02:57.4]} 7... d6 {[%clk 0:02:53.1]} 8. Be2 {[%clk
0:02:57.7]} 8... Qc7 {[%clk 0:02:51.4]} 9. O-O {[%clk 0:02:58.6]} 9... Nc6
{[%clk 0:02:52.6]} 10. h3 {[%clk 0:02:58.2]} 10... O-O {[%clk 0:02:53.3]} 11.
Bh2 {[%clk 0:02:55.8]} 11... a6 {[%clk 0:02:53.1]} 12. a4 {[%clk 0:02:52.7]}
12... Bd7 {[%clk 0:02:49.3]} 13. Nc4 {[%clk 0:02:51.5]} 13... b5 {[%clk
0:02:42.2]} 14. axb5 {[%clk 0:02:45.7]} 14... axb5 {[%clk 0:02:43.2]} 15. Na3
{[%clk 0:02:47]} 15... b4 {[%clk 0:02:42.1]} 16. Nb5 {[%clk 0:02:48.3]} 16...
Qb7 {[%clk 0:02:39.8]} 17. c4 {[%clk 0:02:49.6]} 17... Ne4 {[%clk 0:02:32.8]}
18. Qc2 {[%clk 0:02:44.2]} 18... Nc5 {[%clk 0:02:30.4]} 19. Rxa8 {[%clk
0:02:22.9]} 19... Rxa8 {[%clk 0:02:30.3]} 20. Nfd4 {[%clk 0:02:19.9]} 20... Nxd4
{[%clk 0:02:04.4]} 21. exd4 {[%clk 0:02:16.2]} 21... Bf5 {[%clk 0:02:05.2]} 22.
Qd2 {[%clk 0:02:03.5]} 22... Ne6 {[%clk 0:01:38.5]} 23. Re1 {[%clk 0:02:00.3]}
23... Ra2 {[%clk 0:01:31.2]} 24. Bf3 {[%clk 0:01:50.4]} 24... Qb6 {[%clk
0:01:29.3]} 25. Rd1 {[%clk 0:01:34.4]} 25... b3 {[%clk 0:01:26.2]} 26. Nc3
{[%clk 0:01:16.5]} 26... Bc2 {[%clk 0:01:26.4]} 27. c5 {[%clk 0:00:50.5]} 27...
dxc5 {[%clk 0:01:04.1]} 28. Nd5 {[%clk 0:00:47.9]} 28... Qa5 {[%clk 0:01:01.4]}
29. Qxa5 {[%clk 0:00:44.7]} 29... Rxa5 {[%clk 0:01:01.6]} 30. Re1 {[%clk
0:00:45.3]} 30... Bxd4 {[%clk 0:00:58.2]} 31. Nxe7+ {[%clk 0:00:45.4]} 31... Kg7
{[%clk 0:00:59.3]} 32. Nc6 {[%clk 0:00:35.4]} 32... Ra2 {[%clk 0:00:56.2]} 33.
Bd5 {[%clk 0:00:35.8]} 33... Bxb2 {[%clk 0:00:49]} 34. Ne5 {[%clk 0:00:23]}
34... Ra1 {[%clk 0:00:47.1]} 35. Rxa1 {[%clk 0:00:22]} 35... Bxa1 {[%clk
0:00:48.4]} 36. Nc4 {[%clk 0:00:23.7]} 36... Nd4 {[%clk 0:00:24.5]} 37. Bd6
{[%clk 0:00:13.8]} 37... b2 {[%clk 0:00:21.6]} 38. Nxb2 {[%clk 0:00:12.8]} 38...
Bxb2 {[%clk 0:00:23]} 39. Bxc5 {[%clk 0:00:14.4]} 39... Nf5 {[%clk 0:00:21.3]}
40. g4 {[%clk 0:00:14.3]} 40... Bd4 {[%clk 0:00:17.3]} 41. Bb4 {[%clk
0:00:15.5]} 41... Nh4 {[%clk 0:00:18.1]} 42. Kf1 {[%clk 0:00:08.8]} 42... Bd1
{[%clk 0:00:16.8]} 43. f4 {[%clk 0:00:04.6]} 43... Bf3 {[%clk 0:00:14.9]} 44.
Bxf3 {[%clk 0:00:05.7]} 44... Nxf3 {[%clk 0:00:15.8]} 45. Kg2 {[%clk 0:00:07.3]}
45... Nh4+ {[%clk 0:00:13.8]} 46. Kg3 {[%clk 0:00:08.8]} 46... f6 {[%clk
0:00:12.2]} 47. Be1 {[%clk 0:00:07.4]} 47... g5 {[%clk 0:00:13]} 48. Bd2 {[%clk
0:00:08.9]} 48... Kg6 {[%clk 0:00:13.2]} 49. f5+ {[%clk 0:00:10.2]} 49... Nxf5+
{[%clk 0:00:13]} 50. gxf5+ {[%clk 0:00:11.8]} 50... Kxf5 {[%clk 0:00:14.5]} 51.
h4 {[%clk 0:00:13.7]} 51... g4 {[%clk 0:00:15.5]} 52. h5 {[%clk 0:00:07.7]}
52... Be5+ {[%clk 0:00:14.4]} 53. Kh4 {[%clk 0:00:09.2]} 53... Bf4 {[%clk
0:00:14.3]} 54. Bc3 {[%clk 0:00:05.8]} 54... Bg5+ {[%clk 0:00:08.5]} 55. Kg3
{[%clk 0:00:07.3]} 55... Bf4+ {[%clk 0:00:09.7]} 56. Kh4 {[%clk 0:00:08.7]}
56... g3 {[%clk 0:00:10.7]} 57. Kh3 {[%clk 0:00:06.9]} 57... Kg5 {[%clk
0:00:09.2]} 58. h6 {[%clk 0:00:05]} 58... f5 {[%clk 0:00:10.3]} 59. Bg7 {[%clk
0:00:04.4]} 59... Kh5 {[%clk 0:00:11.7]} 60. Bf6 {[%clk 0:00:04.9]} 60... Bxh6
{[%clk 0:00:12.2]} 61. Kxg3 {[%clk 0:00:05.8]} 61... Kg6 {[%clk 0:00:12.8]} 62.
Be5 {[%clk 0:00:06.3]} 62... Bg5 {[%clk 0:00:14.3]} 63. Kh3 {[%clk 0:00:07.3]}
63... h5 {[%clk 0:00:15.8]} 64. Kg3 {[%clk 0:00:08.5]} 64... Kf7 {[%clk
0:00:17.5]} 65. Kf3 {[%clk 0:00:08.8]} 65... Ke6 {[%clk 0:00:19]} 66. Bb8 {[%clk
0:00:09.3]} 66... h4 {[%clk 0:00:20.4]} 67. Bc7 {[%clk 0:00:09.6]} 67... Kd5
{[%clk 0:00:21.6]} 68. Bb8 {[%clk 0:00:10.7]} 68... Kc4 {[%clk 0:00:23]} 69. Bd6
{[%clk 0:00:06.1]} 69... Kd3 {[%clk 0:00:24]} 70. Bc7 {[%clk 0:00:07.1]} 70...
Bf6 {[%clk 0:00:25]} 71. Bb8 {[%clk 0:00:07.9]} 71... Kd2 {[%clk 0:00:23.6]} 72.
Kf4 {[%clk 0:00:07.1]} 72... Be7 {[%clk 0:00:12.8]} 73. Kxf5 {[%clk 0:00:06.7]}
73... Ke2 {[%clk 0:00:13.7]} 74. Kg4 {[%clk 0:00:07.7]} 74... h3 {[%clk
0:00:14]} 75. Kxh3 {[%clk 0:00:09.2]} 1/2-1/2

[Event "*** Titled Tuesday Blitz AM"]
[Site "Chess.com"]
[Date "2020.01.07"]
[Round "4"]
[White "vinniethepooh"]
[Black "AntonSmirnov"]
[Result "0-1"]
[WhiteElo "2602"]
[BlackElo "2895"]
[TimeControl "180+2"]
[EndTime "9:55:29 PST"]
[Termination "AntonSmirnov won by resignation"]

1. d4 {[%clk 0:03:01.9]} 1... d5 {[%clk 0:03:00.7]} 2. c4 {[%clk 0:03:03.5]}
2... c6 {[%clk 0:03:01.8]} 3. Nc3 {[%clk 0:03:05]} 3... dxc4 {[%clk 0:03:02.1]}
4. e3 {[%clk 0:03:03.6]} 4... b5 {[%clk 0:03:02.9]} 5. a4 {[%clk 0:02:59.5]}
5... b4 {[%clk 0:03:03.8]} 6. Ne4 {[%clk 0:03:00.4]} 6... Qd5 {[%clk 0:03:04.5]}
7. Nd2 {[%clk 0:03:00.4]} 7... c3 {[%clk 0:03:05.7]} 8. bxc3 {[%clk 0:03:02.1]}
8... bxc3 {[%clk 0:03:06.8]} 9. Nb1 {[%clk 0:03:03.8]} 9... Qa5 {[%clk
0:03:07.9]} 10. Qc2 {[%clk 0:03:03.6]} 10... Na6 {[%clk 0:03:09.2]} 11. Qxc3
{[%clk 0:03:02.5]} 11... Nb4 {[%clk 0:03:10.4]} 12. Bd2 {[%clk 0:03:03.9]} 12...
e6 {[%clk 0:03:11.5]} 13. Nf3 {[%clk 0:03:04.1]} 13... Nf6 {[%clk 0:03:12.3]}
14. Bd3 {[%clk 0:02:54.2]} 14... Ba6 {[%clk 0:02:42.1]} 15. Bxa6 {[%clk
0:01:59.1]} 15... Qxa6 {[%clk 0:02:42]} 16. Ne5 {[%clk 0:01:44.3]} 16... Be7
{[%clk 0:02:32.2]} 17. Na3 {[%clk 0:01:38.6]} 17... O-O {[%clk 0:01:47]} 18. Qc4
{[%clk 0:01:36]} 18... Qxc4 {[%clk 0:01:46.7]} 19. Nexc4 {[%clk 0:01:37.9]}
19... Rab8 {[%clk 0:01:30]} 20. Ke2 {[%clk 0:01:37.4]} 20... Nbd5 {[%clk
0:01:26.3]} 21. Rhc1 {[%clk 0:01:18.5]} 21... Rb3 {[%clk 0:01:21.1]} 22. f3
{[%clk 0:01:11.9]} 22... Rc8 {[%clk 0:00:58.6]} 23. Rcb1 {[%clk 0:01:01]} 23...
Rcb8 {[%clk 0:00:23.3]} 24. Rxb3 {[%clk 0:01:00.9]} 24... Rxb3 {[%clk
0:00:24.1]} 25. Rb1 {[%clk 0:01:01.5]} 25... Rxb1 {[%clk 0:00:25.1]} 26. Nxb1
{[%clk 0:01:03.4]} 26... c5 {[%clk 0:00:24.7]} 27. e4 {[%clk 0:01:03]} 27... Nc7
{[%clk 0:00:25.3]} 28. dxc5 {[%clk 0:00:59.5]} 28... Bxc5 {[%clk 0:00:27.2]} 29.
Be3 {[%clk 0:01:00.1]} 29... Nd7 {[%clk 0:00:28.1]} 30. Nc3 {[%clk 0:00:59]}
30... Kf8 {[%clk 0:00:28.3]} 31. Bf4 {[%clk 0:00:53.6]} 31... Na6 {[%clk
0:00:25]} 32. Bd6+ {[%clk 0:00:53.4]} 32... Ke8 {[%clk 0:00:24.7]} 33. Bxc5
{[%clk 0:00:54.6]} 33... Naxc5 {[%clk 0:00:25.7]} 34. Nd6+ {[%clk 0:00:55.6]}
34... Kf8 {[%clk 0:00:25]} 35. a5 {[%clk 0:00:48.5]} 35... Nb8 {[%clk
0:00:24.3]} 36. Ncb5 {[%clk 0:00:46.3]} 36... Nc6 {[%clk 0:00:21.7]} 37. Nc8
{[%clk 0:00:41.6]} 37... a6 {[%clk 0:00:21.8]} 38. Nc7 {[%clk 0:00:34.7]} 38...
Nxa5 {[%clk 0:00:22.9]} 39. Kd2 {[%clk 0:00:28.1]} 39... Nc6 {[%clk 0:00:12.7]}
40. Kc3 {[%clk 0:00:29.3]} 40... a5 {[%clk 0:00:12.8]} 41. Kc4 {[%clk
0:00:19.9]} 41... a4 {[%clk 0:00:14.2]} 42. Nb5 {[%clk 0:00:12.9]} 42... Nb3
{[%clk 0:00:14.2]} 43. Nb6 {[%clk 0:00:11.9]} 43... Nd2+ {[%clk 0:00:09.7]} 44.
Kc5 {[%clk 0:00:11.8]} 44... Ne5 {[%clk 0:00:10.2]} 45. Nxa4 {[%clk 0:00:10.2]}
45... Nd3+ {[%clk 0:00:10.4]} 46. Kd4 {[%clk 0:00:10.7]} 46... Ne1 {[%clk
0:00:09]} 47. Ke3 {[%clk 0:00:11.9]} 47... Nc4+ {[%clk 0:00:10.5]} 48. Kf2
{[%clk 0:00:12.8]} 48... Nd3+ {[%clk 0:00:12]} 49. Kg3 {[%clk 0:00:13.8]} 49...
Ne3 {[%clk 0:00:12.9]} 50. Nac3 {[%clk 0:00:10.8]} 50... Nf1+ {[%clk 0:00:14]}
51. Kh4 {[%clk 0:00:07.2]} 51... Nxh2 {[%clk 0:00:14]} 52. Nd4 {[%clk
0:00:07.7]} 52... Nf1 {[%clk 0:00:15.1]} 53. g3 {[%clk 0:00:07.3]} 53... h6
{[%clk 0:00:16]} 54. Kh3 {[%clk 0:00:08.3]} 54... Ne3 {[%clk 0:00:16.6]} 55. g4
{[%clk 0:00:08.6]} 55... Nf4+ {[%clk 0:00:16.8]} 56. Kg3 {[%clk 0:00:09.3]}
56... g5 {[%clk 0:00:18.2]} 57. Kf2 {[%clk 0:00:06.5]} 57... Nc4 {[%clk
0:00:19.4]} 58. Nce2 {[%clk 0:00:05.9]} 58... Nd3+ {[%clk 0:00:19.5]} 59. Kg3
{[%clk 0:00:06.9]} 59... Ke7 {[%clk 0:00:20.5]} 60. Nc6+ {[%clk 0:00:07.7]}
60... Kd6 {[%clk 0:00:21]} 61. Nd8 {[%clk 0:00:08.4]} 61... Ke7 {[%clk
0:00:22.3]} 62. Nc6+ {[%clk 0:00:09.8]} 62... Kf6 {[%clk 0:00:23.8]} 63. Ncd4
{[%clk 0:00:09.1]} 63... Nd2 {[%clk 0:00:23.4]} 64. Kg2 {[%clk 0:00:08.5]} 64...
Nc4 {[%clk 0:00:23.8]} 65. Kg3 {[%clk 0:00:09.5]} 65... Ne3 {[%clk 0:00:22.7]}
66. Nc6 {[%clk 0:00:09.4]} 66... Nc2 {[%clk 0:00:21.3]} 67. Kg2 {[%clk
0:00:07.1]} 67... Ncb4 {[%clk 0:00:19.1]} 68. Ncd4 {[%clk 0:00:02.7]} 68... Ke5
{[%clk 0:00:20.1]} 69. Nb3 {[%clk 0:00:04]} 69... Nf4+ {[%clk 0:00:20.1]} 70.
Kf2 {[%clk 0:00:03.9]} 70... Nxe2 {[%clk 0:00:18.7]} 71. Kxe2 {[%clk 0:00:05.8]}
71... Kf4 {[%clk 0:00:20.3]} 72. Nc5 {[%clk 0:00:07.2]} 72... Nc6 {[%clk
0:00:20.4]} 73. Kf2 {[%clk 0:00:08.3]} 73... Ne5 {[%clk 0:00:21.6]} 74. Ke2
{[%clk 0:00:06.4]} 74... Nxf3 {[%clk 0:00:22.7]} 75. Nd3+ {[%clk 0:00:07.7]}
75... Kxe4 {[%clk 0:00:24.1]} 76. Nf2+ {[%clk 0:00:08.9]} 76... Kf4 {[%clk
0:00:25.6]} 77. Nh3+ {[%clk 0:00:07.2]} 77... Kxg4 {[%clk 0:00:26.3]} 78. Nf2+
{[%clk 0:00:09.1]} 78... Kf4 {[%clk 0:00:27.8]} 79. Nd3+ {[%clk 0:00:10.3]}
79... Kg3 {[%clk 0:00:29.1]} 0-1